fUSD/lending_fUSD_20250420
["ID","MTS","AMOUNT","RATE_DAILY","PERIOD"]
[358443913,1745149951302,500.0,0.00043835,30]
[358443914,1745149951340,500.0,0.00048705,30]
[358443915,1745149951376,500.0,0.00055646,120]
[358443916,1745149951440,1157.98,0.00043835,30]
[358443917,1745149951506,500.0,0.00043835,30]
[358443918,1745149951648,500.0,0.00050492,60]
[358443919,1745149951688,500.0,0.00050415,60]
[358443920,1745149951729,1157.98,0.00043835,30]
[358443921,1745149951766,500.0,0.00043835,30]
[358443922,1745149951823,500.0,0.00059999,120]
[358443923,1745149951924,600.0,0.00048648,30]
[358443924,1745149951962,1157.98,0.00043835,30]
[358443925,1745149951998,500.0,0.00051609,60]
[358443926,1745149952035,500.0,0.00043835,30]
[358443927,1745149952071,502.13116895,0.00059999,120]
[358443928,1745149952107,600.0,0.00049928,30]
[358443929,1745149952143,500.0,0.00050453,60]
[358443930,1745149952197,247.35557874,0.00056983,120]
[358443931,1745149952235,500.0,0.00043835,30]
[358443932,1745149952323,600.0,0.00048663,30]
[358443933,1745149952361,500.0,0.00050585,60]
[358443934,1745149952398,600.0,0.00050096,60]
[358443935,1745149952436,988.50515853,0.0005063,60]
[358443936,1745149952476,500.0,0.00043835,30]
[358443937,1745149952528,1157.98,0.00043835,30]
[358443938,1745149952679,600.0,0.00049049,30]
[358443939,1745149952719,500.0,0.00051242,60]
[358443940,1745149952759,500.0,0.00043835,30]
[358443941,1745149952797,600.0,0.00050263,60]
[358443942,1745149952838,1157.98,0.00043835,30]
[358443943,1745149952875,500.0,0.00043835,30]
[358443944,1745149952911,500.0,0.00052632,60]
[358443945,1745149952994,600.0,0.00049427,30]
[358443946,1745149953037,1157.98,0.00043835,30]
[358443947,1745149953076,500.0,0.00043835,30]
[358443948,1745149953116,500.0,0.00043835,30]
[358443949,1745149953177,500.0,0.00051725,60]
[358443950,1745149953218,600.0,0.0005043,60]
[358443951,1745149953269,500.0,0.00053271,60]
[358443952,1745149953309,1157.98,0.00043835,30]
[358443953,1745149953356,500.0,0.00043835,30]
[358443954,1745149953403,500.0,0.00043835,30]
[358443955,1745149953450,600.0,0.00049975,30]
[358443956,1745149953535,325.30831078,0.00058999,120]
[358443957,1745149953585,1157.98,0.00043835,30]
[358443958,1745149953633,500.0,0.0005212,60]
[358443959,1745149953682,500.0,0.00043835,30]
[358443960,1745149953728,500.0,0.00043835,30]
[358443961,1745149953772,500.0,0.00053331,60]
[358443962,1745149953812,600.0,0.0005054,60]
[358443963,1745149953853,150.0,0.00059999,120]
[358443964,1745149953899,600.0,0.0005018,60]
[358443965,1745149953947,500.0,0.00043835,30]
[358443966,1745149953987,500.0,0.00043835,30]
[358443967,1745149954090,600.0,0.00050762,60]
[358443968,1745149954132,500.0,0.00053624,60]
[358443969,1745149954171,1157.98,0.00043835,30]
[358443970,1745149954211,500.0,0.00043835,30]
[358443971,1745149954256,600.0,0.00050291,60]
[358443972,1745149954298,500.0,0.00043835,30]
[358443973,1745149954338,1157.98,0.00043835,30]
[358443974,1745149954390,500.0,0.00043835,30]
[358443975,1745149954434,500.0,0.0005232,60]
[358443976,1745149954476,500.0,0.00043835,30]
[358443977,1745149954522,500.0,0.00053801,60]
[358443978,1745149954567,600.0,0.00050929,60]
[358443979,1745149954609,600.0,0.00050397,60]
[358443980,1745149954649,1158.03061833,0.00043835,30]
[358443981,1745149954690,500.0,0.00043835,30]
[358443982,1745149954735,500.0,0.00043835,30]
[358443983,1745149954781,500.0,0.00055544,120]
[358443984,1745149954835,500.0,0.00052501,60]
[358443985,1745149954874,500.0,0.00043835,30]
[358443986,1745149954913,500.0,0.00043835,30]
[358443987,1745149954950,600.0,0.00050415,60]
[358443988,1745149954989,600.0,0.00051292,60]
[358443989,1745149955027,500.0,0.00043835,30]
[358443990,1745149955122,500.0,0.00043835,30]
[358443991,1745149955193,500.0,0.00052804,60]
[358443992,1745149955276,600.0,0.00050999,60]
[358443993,1745149955316,600.0,0.00052101,60]
[358443994,1745149955361,500.0,0.00043835,30]
[358443995,1745149955403,500.0,0.00043835,30]
[358443996,1745149955589,500.0,0.00054077,60]
[358443997,1745149955632,600.0,0.00052959,60]
[358443998,1745149955674,634.54065779,0.00043835,30]
[358443999,1745149955715,600.0,0.0005162,60]
[358444000,1745149955760,500.0,0.00056512,120]
[358444001,1745149955804,500.0,0.00043835,30]
[358444002,1745149955894,500.0,0.00043835,30]
[358444003,1745149955935,500.0,0.00054155,60]
[358444004,1745149955974,600.0,0.00053708,60]
[358444005,1745149956012,612.22252458,0.00056938,120]
[358444006,1745149956052,600.0,0.00051843,60]
[358444007,1745149956468,500.0,0.00043835,30]
[358444008,1745149956515,600.0,0.00054146,60]
[358444009,1745149956552,500.0,0.00054898,60]
[358444010,1745149956589,600.0,0.00053139,60]
[358444011,1745149956628,500.0,0.00043835,30]
[358444012,1745149956665,500.0,0.00043835,30]
[358444013,1745149956706,600.0,0.00054608,60]
[358444014,1745149956742,500.0,0.00054954,60]
[358444015,1745149956779,500.0,0.00043835,30]
[358444016,1745149956816,600.0,0.00053143,60]
[358444017,1745149956861,500.0,0.00043835,30]
[358444018,1745149956921,500.0,0.00043835,30]
[358444019,1745149956962,600.0,0.00054909,60]
[358444020,1745149957001,500.0,0.00055281,120]
[358444021,1745149957037,500.0,0.00043835,30]
[358444022,1745149957074,1934.33,0.00043835,30]
[358444023,1745149957110,600.0,0.00053569,60]
[358444024,1745149957149,500.0,0.00043835,30]
[358444025,1745149957256,500.0,0.00043835,30]
[358444026,1745149957295,500.0,0.00056048,120]
[358444027,1745149957330,600.0,0.00055274,120]
[358444028,1745149957366,1934.33,0.00043835,30]
[358444029,1745149957407,500.0,0.00043835,30]
[358444030,1745149957449,600.0,0.00053658,60]
[358444031,1745149957496,500.0,0.00043835,30]
[358444032,1745149957556,500.0,0.00043835,30]
[358444033,1745149957593,1934.33,0.00043835,30]
[358444034,1745149957628,600.0,0.00055666,120]
[358444035,1745149957665,422.0470097,0.00043835,30]
[358444036,1745149957748,552.76672016,0.00043835,30]
[358444037,1745149957783,1934.33,0.00043835,30]
[358444038,1745149957819,500.0,0.00043835,30]
[358444039,1745149957856,600.0,0.00053771,60]
[358444040,1745149957953,600.0,0.00055744,120]
[358444041,1745149958024,500.0,0.00043835,30]
[358444042,1745149958060,1934.33,0.00043835,30]
[358444043,1745149958134,500.0,0.00056255,120]
[358444044,1745149958169,600.0,0.00053787,60]
[358444045,1745149958260,500.0,0.00043835,30]
[358444046,1745149958300,1934.33,0.00043835,30]
[358444047,1745149958338,600.0,0.00055775,120]
[358444048,1745149958510,1934.33,0.00043835,30]
[358444049,1745149958549,600.0,0.00053969,60]
[358444050,1745149958587,500.0,0.00056941,120]
[358444051,1745149958624,380.14877209,0.00043835,30]
[358444052,1745149958834,1934.33,0.00043835,30]
[358444053,1745149958871,600.0,0.0005585,120]
[358444054,1745149958907,500.0,0.00056955,120]
[358444055,1745149958943,600.0,0.00054062,60]
[358444056,1745149959062,1934.33,0.00043835,30]
[358444057,1745149959100,500.0,0.00043835,30]
[358444058,1745149959193,500.0,0.00057088,120]
[358444059,1745149959232,600.0,0.00054142,60]
[358444060,1745149959306,1934.33,0.00043835,30]
[358444061,1745149959346,600.0,0.00055935,120]
[358444062,1745149959565,858.53389057,0.00057103,120]
[358444063,1745149959604,1934.33,0.00043835,30]
[358444064,1745149959739,600.0,0.00055951,120]
[358444065,1745149959838,1934.33,0.00043835,30]
[358444066,1745149960059,1934.33,0.00043835,30]
[358444067,1745149960098,600.0,0.00054847,60]
[358444068,1745149960135,600.0,0.00056178,120]
[358444069,1745149960306,1934.33,0.00043835,30]
[358444070,1745149960433,600.0,0.00054921,60]
[358444071,1745149960473,600.0,0.00056438,120]
[358444072,1745149960512,500.0,0.00043835,30]
[358444073,1745149960549,1934.33,0.00043835,30]
[358444074,1745149960747,500.0,0.00043835,30]
[358444075,1745149960785,734.40130455,0.0005751,120]
[358444076,1745149960823,600.0,0.00054922,60]
[358444077,1745149960860,1934.33,0.00043835,30]
[358444078,1745149960984,500.0,0.00043835,30]
[358444079,1745149961035,1934.33,0.00043835,30]
[358444080,1745149961156,600.0,0.00056708,120]
[358444081,1745149961193,500.0,0.00043835,30]
[358444082,1745149961236,500.0,0.00043835,30]
[358444083,1745149961274,1934.33,0.00043835,30]
[358444084,1745149961438,500.0,0.00043835,30]
[358444085,1745149961479,500.0,0.00043835,30]
[358444086,1745149961517,1934.33,0.00043835,30]
[358444087,1745149961553,600.0,0.00056841,120]
[358444088,1745149961696,294.25,0.00043835,30]
[358444089,1745149961762,1934.33,0.00043835,30]
[358444090,1745149962012,1934.33,0.00043835,30]
[358444091,1745149962156,500.0,0.00043835,30]
[358444092,1745149962251,1934.33,0.00043835,30]
[358444093,1745149962313,500.0,0.00043835,30]
[358444094,1745149962493,1934.33,0.00043835,30]
[358444095,1745149962532,600.0,0.00057393,120]
[358444096,1745149962573,500.0,0.00043835,30]
[358444097,1745149962732,1934.358026,0.00043835,30]
[358444098,1745149962873,919.81784167,0.00057419,120]
[358444099,1745149962912,500.0,0.00043835,30]
[358444100,1745149963160,153.0,0.00049589,60]
[358444101,1745149963198,500.0,0.00043835,30]
[358444102,1745149963373,153.0,0.00049589,60]
[358444103,1745149963414,500.0,0.00043835,30]
[358444104,1745149963596,153.0,0.00049589,60]
[358444105,1745149963635,500.0,0.00043835,30]
[358444106,1745149963861,500.0,0.00043835,30]
[358444107,1745149963898,500.0,0.00043835,30]
[358444108,1745149964095,500.0,0.00043835,30]
[358444109,1745149964134,500.0,0.00043835,30]
[358444110,1745149964346,588.06630244,0.00043835,30]
[358444111,1745149964386,500.0,0.00043835,30]
[358444112,1745149964424,150.0,0.00059999,80]
[358444113,1745149964604,500.0,0.00043835,30]
[358444114,1745149964640,150.0,0.00059999,80]
[358444115,1745149964826,150.0,0.00059999,80]
[358444116,1745149964908,500.0,0.00043835,30]
[358444117,1745149964945,500.0,0.00043835,30]
[358444118,1745149965025,248.29962032,0.00059999,80]
[358444119,1745149965145,500.0,0.00043835,30]
[358444120,1745149965182,500.0,0.00043835,30]
[358444121,1745149965385,500.0,0.00043835,30]
[358444122,1745149965425,500.0,0.00043835,30]
[358444123,1745149965631,500.0,0.00043835,30]
[358444124,1745149965672,500.0,0.00043835,30]
[358444125,1745149965874,500.0,0.00043835,30]
[358444126,1745149965913,500.0,0.00043835,30]
[358444127,1745149966111,430.2913636,0.00043835,30]
[358444128,1745149966148,500.0,0.00043835,30]
[358444129,1745149966262,504.02092652,0.00043835,30]
[358444130,1745149966361,500.0,0.00043835,30]
[358444131,1745149966591,221.6900296,0.00043835,30]
[358444132,1745149968182,500.0,0.00043835,30]
[358444133,1745149968433,500.0,0.00043835,30]
[358444134,1745149968664,500.0,0.00043835,30]
[358444135,1745149968914,500.0,0.00043835,30]
[358444136,1745149969146,500.0,0.00043835,30]
[358444137,1745149969383,500.0,0.00043835,30]
[358444138,1745149969443,500.0,0.00043835,30]
[358444139,1745149969623,500.0,0.00043835,30]
[358444140,1745149969667,500.0,0.00043835,30]
[358444141,1745149969907,500.0,0.00043835,30]
[358444142,1745149969946,500.0,0.00043835,30]
[358444143,1745149970070,500.0,0.00043835,30]
[358444144,1745149970162,500.0,0.00043835,30]
[358444145,1745149970302,500.0,0.00043835,30]
[358444146,1745149970391,500.0,0.00043835,30]
[358444147,1745149970563,557.51977391,0.00043835,30]
[358444148,1745149970645,500.0,0.00043835,30]
[358444149,1745149970894,500.0,0.00043835,30]
[358444150,1745149971038,500.0,0.00043835,30]
[358444151,1745149971145,500.0,0.00043835,30]
[358444152,1745149971214,189.21,0.00051384,120]
[358444153,1745149971277,500.0,0.00043835,30]
[358444154,1745149971391,500.0,0.00043835,30]
[358444155,1745149971517,178.47559223,0.00043835,30]
[358444156,1745149971565,189.21,0.00052754,120]
[358444157,1745149971617,500.0,0.00043835,30]
[358444158,1745149971856,500.0,0.00043835,30]
[358444159,1745149972075,500.0,0.00043835,30]
[358444160,1745149972313,500.0,0.00043835,30]
[358444161,1745149972484,500.0,0.00043835,30]
[358444162,1745149972548,500.0,0.00043835,30]
[358444163,1745149972711,500.0,0.00043835,30]
[358444164,1745149972789,500.0,0.00043835,30]
[358444165,1745149972958,248.07,0.00043835,30]
[358444166,1745149973039,208.44214014,0.00043835,30]
[358444167,1745149973369,500.0,0.00043835,30]
[358444168,1745149974712,500.0,0.00043835,30]
[358444169,1745149975244,500.0,0.00043835,30]
[358444170,1745149975522,500.0,0.00043835,30]
[358444171,1745149975767,500.0,0.00043835,30]
[358444172,1745149976001,500.0,0.00043835,30]
[358444173,1745149976233,500.0,0.00043835,30]
[358444174,1745149976452,500.0,0.00043835,30]
[358444175,1745149976891,500.0,0.00043835,30]
[358444176,1745149977087,374.73,0.00043835,30]
[358444177,1745149977144,500.0,0.00043835,30]
[358444178,1745149977512,500.0,0.00043835,30]
[358444179,1745149977553,500.0,0.00043835,30]
[358444180,1745149977680,500.0,0.00043835,30]
[358444181,1745149977731,500.0,0.00043835,30]
[358444182,1745149977944,500.0,0.00043835,30]
[358444183,1745149977983,500.0,0.00043835,30]
[358444184,1745149978174,500.0,0.00043835,30]
[358444185,1745149978215,500.0,0.00043835,30]
[358444186,1745149978399,500.0,0.00043835,30]
[358444187,1745149978440,500.0,0.00043835,30]
[358444188,1745149978619,500.0,0.00043835,30]
[358444189,1745149978666,232.4,0.00043835,30]
[358444190,1745149978854,500.0,0.00043835,30]
[358444191,1745149979135,500.0,0.00043835,30]
[358444192,1745149979346,500.0,0.00043835,30]
[358444193,1745149979581,500.0,0.00043835,30]
[358444194,1745149979831,500.0,0.00043835,30]
[358444195,1745149980146,500.0,0.00043835,30]
[358444196,1745149980366,500.0,0.00043835,30]
[358444197,1745149980703,500.0,0.00043835,30]
[358444198,1745149980744,500.0,0.00043835,30]
[358444199,1745149980788,500.0,0.00043835,30]
[358444200,1745149980924,516.06894363,0.00043835,30]
[358444201,1745149980976,500.0,0.00043835,30]
[358444202,1745149981030,500.0,0.00043835,30]
[358444203,1745149981273,500.0,0.00043835,30]
[358444204,1745149981562,500.0,0.00043835,30]
[358444205,1745149981604,500.0,0.00043835,30]
[358444206,1745149981818,500.0,0.00043835,30]
[358444207,1745149981858,368.25,0.00043835,30]
[358444208,1745149982069,500.0,0.00043835,30]
[358444209,1745149982396,500.0,0.00043835,30]
[358444210,1745149982586,500.0,0.00054794,120]
[358444211,1745149982680,500.0,0.00043835,30]
[358444212,1745149982721,500.0,0.00043835,30]
[358444213,1745149982821,500.0,0.00056164,120]
[358444214,1745149982910,500.0,0.00043835,30]
[358444215,1745149982947,500.0,0.00043835,30]
[358444216,1745149983076,500.0,0.00057534,120]
[358444217,1745149983173,500.0,0.00043835,30]
[358444218,1745149983222,500.0,0.00043835,30]
[358444219,1745149983407,500.0,0.00043835,30]
[358444220,1745149983450,500.0,0.00043835,30]
[358444221,1745149983494,500.0,0.00058904,120]
[358444222,1745149983647,437.14808759,0.00043835,30]
[358444223,1745149983692,500.0,0.00043835,30]
[358444224,1745149983734,500.0,0.00060273,120]
[358444225,1745149983780,500.0,0.00043835,30]
[358444226,1745149983878,500.0,0.00043835,30]
[358444227,1745149984011,607.4,0.00043835,30]
[358444228,1745149984376,500.0,0.00043835,30]
[358444229,1745149984608,500.0,0.00043835,30]
[358444230,1745149984662,150.0,0.00059999,120]
[358444231,1745149984856,500.0,0.00043835,30]
[358444232,1745149985109,500.0,0.00043835,30]
[358444233,1745149985358,230.71965918,0.00043835,30]
[358444234,1745149985986,500.0,0.00043835,30]
[358444235,1745149986219,500.0,0.00043835,30]
[358444236,1745149986454,500.0,0.00043835,30]
[358444237,1745149986672,577.42,0.00043835,30]
[358444238,1745149987274,500.0,0.00043835,30]
[358444239,1745149987526,500.0,0.00043835,30]
[358444240,1745149987771,500.0,0.00043835,30]
[358444241,1745149988020,532.67,0.00043835,30]
[358444242,1745149989140,619.23,0.00043835,30]
[358444243,1745149989383,500.0,0.00043835,30]
[358444244,1745149989636,500.0,0.00043835,30]
[358444245,1745149989850,500.0,0.00043835,30]
[358444246,1745149990087,500.0,0.00043835,30]
[358444247,1745149990133,500.0,0.00043835,30]
[358444248,1745149990323,500.0,0.00043835,30]
[358444249,1745149990385,500.0,0.00043835,30]
[358444250,1745149990550,500.0,0.00043835,30]
[358444251,1745149990632,500.0,0.00043835,30]
[358444252,1745149990798,500.0,0.00043835,30]
[358444253,1745149991029,500.0,0.00043835,30]
[358444254,1745149991074,500.0,0.00043835,30]
[358444255,1745149991118,500.0,0.00043835,30]
[358444256,1745149991293,500.0,0.00043835,30]
[358444257,1745149991345,609.31834562,0.00043835,30]
[358444258,1745149991522,500.0,0.00043835,30]
[358444259,1745149991767,500.0,0.00043835,30]
[358444260,1745149992027,500.0,0.00043835,30]
[358444261,1745149992287,500.0,0.00043835,30]
[358444262,1745149992624,500.0,0.00043835,30]
[358444263,1745149992862,500.0,0.00043835,30]
[358444264,1745149993123,500.0,0.00043835,30]
[358444265,1745149993366,500.0,0.00043835,30]
[358444266,1745149993703,500.0,0.00043835,30]
[358444267,1745149993969,500.0,0.00043835,30]
[358444268,1745149994221,500.0,0.00043835,30]
[358444269,1745149994460,500.0,0.00043835,30]
[358444270,1745149994700,500.0,0.00043835,30]
[358444271,1745149995040,500.0,0.00043835,30]
[358444272,1745149995616,500.0,0.00043835,30]
[358444273,1745149995856,500.0,0.00043835,30]
[358444274,1745149996081,500.0,0.00043835,30]
[358444275,1745149996343,500.0,0.00043835,30]
[358444276,1745149996382,500.0,0.00043835,30]
[358444277,1745149996573,500.0,0.00043835,30]
[358444278,1745149996655,500.0,0.00043835,30]
[358444279,1745149996803,500.0,0.00043835,30]
[358444280,1745149996910,500.0,0.00043835,30]
[358444281,1745149997070,434.06395847,0.00043835,30]
[358444282,1745149997241,500.0,0.00043835,30]
[358444283,1745149997480,500.0,0.00043835,30]
[358444284,1745149997521,150.0,0.0005,120]
[358444285,1745149997713,613.97732404,0.00043835,30]
[358444286,1745149999185,150.0,0.00052,120]
[358444287,1745150000867,150.0,0.00054,120]
[358444288,1745150002757,150.0,0.00056,120]
[358444289,1745150015325,-500.0,0.00043835,30]
[358444290,1745150015365,-539.26622662,0.00043835,30]
[358444291,1745150015403,-500.0,0.00043835,30]
[358444292,1745150015439,-552.88586952,0.00043835,30]
[358444293,1745150015479,-150.0,0.00058,120]
[358444294,1745150015516,-150.0,0.0006,120]
[358444295,1745150015553,-200.0,0.00060274,30]
[358444296,1745150015590,-207.4,0.00060274,30]
[358444297,1745150015627,-215.0738,0.00060274,30]
[358444298,1745150015662,-200.0,0.00060274,30]
[358444299,1745150015695,-155.0,0.00060274,30]
[358444300,1745150015728,-223.0315306,0.00060274,30]
[358444301,1745150015762,-155.0,0.00060274,30]
[358444302,1745150015797,-207.4,0.00060274,30]
[358444303,1745150015831,-231.28369723,0.00060274,30]
[358444304,1745150015864,-155.0,0.00060274,30]
[358444305,1745150015897,-295.53046572,0.00060274,30]
[358444306,1745150015929,-239.84119403,0.00060274,30]
[358444307,1745150015962,-155.0,0.00060274,30]
[358444308,1745150015995,-248.71531821,0.00060274,30]
[358444309,1745150016028,-155.0,0.00060274,30]
[358444310,1745150016061,-257.91778498,0.00060274,30]
[358444311,1745150016096,-267.46074303,0.00060274,30]
[358444312,1745150016129,-155.0,0.00060274,30]
[358444313,1745150016162,-277.35679052,0.00060274,30]
[358444314,1745150016193,-155.0,0.00060274,30]
[358444315,1745150016229,-287.61899177,0.00060274,30]
[358444316,1745150016271,-162.54912088,0.00060274,30]
[358444317,1745150016308,-298.26089446,0.00060274,30]
[358444318,1745150016343,-309.29654756,0.00060274,30]
[358444319,1745150016376,-320.74051982,0.00060274,30]
[358444320,1745150016410,-332.60791905,0.00060274,30]
[358444321,1745150016445,-344.91441206,0.00060274,30]
[358444322,1745150016480,-357.6762453,0.00060274,30]
[358444323,1745150016514,-370.91026638,0.00060274,30]
[358444324,1745150016716,-384.63394623,0.00060274,30]
[358444325,1745150016753,-600.0,0.00060274,30]
[358444326,1745150016788,-500.0,0.00061643,120]
[358444327,1745150016822,-150.0,0.00062,120]
[358444328,1745150016858,-2726.6357837,0.00062245,30]
[358444329,1745150016891,-1104.1,0.00063013,120]
[358444330,1745150016924,-500.0,0.00063013,120]
[358444331,1745150016958,-2726.6357837,0.00063934,31]
[358444332,1745150016990,-150.0,0.00064,120]
[358444333,1745150017023,-500.0,0.00064383,120]
[358444334,1745150017060,-2726.6357837,0.00065624,32]
[358444335,1745150017096,-1018.37689618,0.00065643,37]
[358444336,1745150017133,-154.47,0.00065742,30]
[358444337,1745150017168,-154.47,0.00065742,30]
[358444338,1745150017203,-154.47,0.00065742,30]
[358444339,1745150017237,-141351.8,0.00065753,30]
[358444340,1745150017275,-141351.8,0.00065753,30]
[358444341,1745150017309,-141351.8,0.00065753,30]
[358444342,1745150017346,-141351.8,0.00065753,30]
[358444343,1745150017379,-141351.8,0.00065753,30]
[358444344,1745150017413,-141351.8,0.00065753,30]
[358444345,1745150017447,-141351.8,0.00065753,30]
[358444346,1745150017483,-141351.8,0.00065753,30]
[358444347,1745150017516,-141351.8,0.00065753,30]
[358444348,1745150017550,-141351.8,0.00065753,30]
[358444349,1745150017584,-141351.8,0.00065753,30]
[358444350,1745150017616,-141351.8,0.00065753,30]
[358444351,1745150017649,-141351.8,0.00065753,30]
[358444352,1745150017682,-141351.8,0.00065753,30]
[358444353,1745150017715,-141351.8,0.00065753,30]
[358444354,1745150017747,-141351.8,0.00065753,30]
[358444355,1745150017779,-141351.8,0.00065753,30]
[358444356,1745150017810,-141351.8,0.00065753,30]
[358444357,1745150017843,-141351.8,0.00065753,30]
[358444358,1745150017875,-141351.8,0.00065753,30]
[358444359,1745150017908,-141351.8,0.00065753,30]
[358444360,1745150017940,-8729.03346875,0.00065753,30]
[358444361,1745150024863,-500.0,0.00043835,30]
[358444362,1745150024897,-500.0,0.00043835,30]
[358444363,1745150024930,-500.0,0.00043835,30]
[358444364,1745150024965,-500.0,0.00043835,30]
[358444365,1745150024999,-500.0,0.00043835,30]
[358444366,1745150025034,-500.0,0.00043835,30]
[358444367,1745150025068,-500.0,0.00043835,30]
[358444368,1745150025101,-624.76472461,0.00043835,30]
[358444369,1745150025139,-132622.76653125,0.00065753,30]
[358444370,1745150025173,-141351.8,0.00065753,30]
[358444371,1745150025207,-141351.84001822,0.00065753,30]
[358444372,1745150025244,-500.0,0.00065753,120]
[358444373,1745150025280,-600.0,0.00065753,120]
[358444374,1745150025315,-600.0,0.00065753,120]
[358444375,1745150025355,-600.0,0.00065753,120]
[358444376,1745150025390,-600.0,0.00065753,120]
[358444377,1745150025424,-600.0,0.00065753,120]
[358444378,1745150025459,-600.0,0.00065753,120]
[358444379,1745150025496,-600.0,0.00065753,120]
[358444380,1745150025535,-600.0,0.00065753,120]
[358444381,1745150025572,-600.0,0.00065753,120]
[358444382,1745150025609,-600.0,0.00065753,120]
[358444383,1745150025645,-600.0,0.00065753,120]
[358444384,1745150025682,-448.25929712,0.00065753,120]
[358444385,1745150025719,-2437.62,0.000658,60]
[358444386,1745150025757,-339.55,0.000658,60]
[358444387,1745150025792,-150.0,0.00066,120]
[358444388,1745150025829,-500.0,0.00066164,120]
[358444389,1745150025862,-549.95026844,0.00066712,120]
[358444390,1745150025896,-500.0,0.00067123,120]
[358444391,1745150025932,-2726.6357837,0.00067314,33]
[358444392,1745150025968,-150.0,0.00068,120]
[358444393,1745150026001,-500.0,0.00068493,120]
[358444394,1745150026159,500.0,0.00043835,30]
[358444395,1745150026205,500.0,0.00043835,30]
[358444396,1745150026251,500.0,0.00043835,30]
[358444397,1745150026297,500.0,0.00043835,30]
[358444398,1745150026423,500.0,0.00043835,30]
[358444399,1745150026680,500.0,0.00043835,30]
[358444400,1745150026915,500.0,0.00043835,30]
[358444401,1745150027159,500.0,0.00043835,30]
[358444402,1745150027761,500.0,0.00043835,30]
[358444403,1745150028016,531.28560963,0.00043835,30]
[358444404,1745150035182,1000000.0,0.00065,120]
[358444405,1745150038074,2363.08434587,0.00062072,30]
[358444406,1745150038493,2363.08434587,0.00064003,31]
[358444407,1745150038787,2363.08434587,0.00065934,32]
[358444408,1745150039080,2363.08434587,0.00067866,33]
[358444409,1745150039294,599.63298277,0.00043835,30]
[358444410,1745150042007,1000000.0,0.00066,120]
[358444411,1745150043546,518.49817323,0.00043835,30]
[358444412,1745150043600,1122.79668338,0.00063014,120]